fUSD/lending_fUSD_20260515
["ID","MTS","AMOUNT","RATE_DAILY","PERIOD"]
[422281711,1778793039000,-151.0,0.00010959,2]
[422281725,1778793039000,-259.96,0.00010989,2]
[422281728,1778793039000,-150.0,0.00010989,2]
[422281727,1778793039000,-179.4,0.00010989,2]
[422281722,1778793039000,-245.24,0.00010989,2]
[422281735,1778793039000,-583.77426698,0.00011,2]
[422281736,1778793039000,-567.61,0.0001103,2]
[422281731,1778793039000,-150.01,0.00010989,2]
[422281721,1778793039000,-252.71,0.00010989,2]
[422281719,1778793039000,-552.93,0.00010989,2]
[422281713,1778793039000,-151.0,0.00010959,2]
[422281717,1778793039000,-151.0,0.00010959,2]
[422281733,1778793039000,-182.11,0.00010989,2]
[422281897,1778793040000,-500.0,0.00013698,2]
[422281884,1778793040000,-269.37520228,0.00013698,2]
[422281886,1778793040000,-614.80424491,0.00013698,2]
[422281895,1778793040000,-500.0,0.00013698,2]
[422281882,1778793040000,-486.10129379,0.00013698,2]
[422281878,1778793040000,-500.0,0.00013698,2]
[422281876,1778793040000,-500.0,0.00013698,2]
[422281874,1778793040000,-506.74537817,0.00013698,2]
[422281872,1778793040000,-314.09232637,0.00013698,2]
[422281861,1778793040000,-151.0,0.00013597,2]
[422281880,1778793040000,-500.0,0.00013698,2]
[422281890,1778793040000,-500.0,0.00013698,2]
[422281922,1778793040000,-266.33289484,0.00013698,2]
[422281893,1778793040000,-500.0,0.00013698,2]
[422281899,1778793040000,-500.0,0.00013698,2]
[422281901,1778793040000,-158.76349757,0.00013698,2]
[422281905,1778793040000,-500.0,0.00013698,2]
[422281904,1778793040000,-500.0,0.00013698,2]
[422281909,1778793040000,-500.0,0.00013698,2]
[422281912,1778793040000,-500.0,0.00013698,2]
[422281918,1778793040000,-500.0,0.00013698,2]
[422281908,1778793040000,-500.0,0.00013698,2]
[422281920,1778793040000,-500.0,0.00013698,2]
[422281914,1778793040000,-500.0,0.00013698,2]
[422281916,1778793040000,-500.0,0.00013698,2]
[422281870,1778793040000,-500.0,0.00013698,2]
[422281888,1778793040000,-500.0,0.00013698,2]
[422281868,1778793040000,-625.7470238,0.00013698,2]
[422281836,1778793040000,-552.7858693,0.00013184,2]
[422281863,1778793040000,-300.0,0.00013599,2]
[422281924,1778793040000,-500.0,0.00013698,2]
[422281808,1778793040000,-224.01,0.00012303,2]
[422281806,1778793040000,-710.50851313,0.00012163,2]
[422281823,1778793040000,-710.50851313,0.00012738,2]
[422281821,1778793040000,-7217.94967261,0.00012683,2]
[422281810,1778793040000,-2000.0,0.00012328,2]
[422281813,1778793040000,-724.85,0.00012329,2]
[422281819,1778793040000,-500.0,0.00012636,2]
[422281817,1778793040000,-5456.0,0.0001256,2]
[422281815,1778793040000,-500.0,0.00012362,2]
[422281825,1778793040000,-4609.0,0.00012759,2]
[422281832,1778793040000,-500.0,0.0001291,2]
[422281866,1778793040000,-350.0,0.00013606,2]
[422281827,1778793040000,-2508.0,0.000129,2]
[422281834,1778793040000,-2319.0,0.000131,2]
[422281846,1778793040000,-2000.0,0.00013449,2]
[422281848,1778793040000,-150.0,0.00013488,2]
[422281838,1778793040000,-710.50851313,0.00013312,2]
[422281844,1778793040000,-350.0,0.00013395,2]
[422281842,1778793040000,-7217.94967261,0.00013345,2]
[422281840,1778793040000,-2136.585161,0.00013328,2]
[422281851,1778793040000,-150.0,0.00013488,2]
[422281852,1778793040000,-150.0,0.00013488,2]
[422281855,1778793040000,-150.0,0.00013488,2]
[422281859,1778793040000,-150.0,0.00013488,2]
[422281857,1778793040000,-150.0,0.00013488,2]
[422281830,1778793040000,-1252.0,0.00012904,2]
[422281930,1778793040000,-550.33105093,0.00013698,2]
[422281926,1778793040000,-500.0,0.00013698,2]
[422281932,1778793040000,-500.0,0.00013698,2]
[422281992,1778793040000,-500.0,0.00013698,2]
[422281996,1778793040000,-500.0,0.00013698,2]
[422282005,1778793040000,-500.0,0.00013698,2]
[422282006,1778793040000,-500.0,0.00013698,2]
[422282009,1778793040000,-500.0,0.00013698,2]
[422282011,1778793040000,-520.29475132,0.00013698,2]
[422282023,1778793040000,-151.0,0.00013699,2]
[422282026,1778793040000,-151.0,0.00013699,2]
[422282025,1778793040000,-151.0,0.00013699,2]
[422282015,1778793040000,-200.0,0.00013699,2]
[422282013,1778793040000,-2029.01,0.00013699,2]
[422282021,1778793040000,-166.66,0.00013699,2]
[422282019,1778793040000,-151.0,0.00013699,2]
[422282028,1778793040000,-151.0,0.00013699,2]
[422282030,1778793040000,-151.0,0.00013699,2]
[422282033,1778793040000,-783.7,0.00013699,2]
[422282034,1778793040000,-418.151872,0.00013699,2]
[422282039,1778793040000,-418.151872,0.00013699,2]
[422282036,1778793040000,-418.151872,0.00013699,2]
[422282040,1778793040000,-418.151872,0.00013699,2]
[422282043,1778793040000,-509.67,0.00013699,2]
[422282045,1778793040000,-789.58,0.00013699,2]
[422282049,1778793040000,-150.0,0.00013737,2]
[422282047,1778793040000,-1291.11,0.000137,2]
[422282051,1778793040000,-500.0,0.0001376,2]
[422282053,1778793040000,-4789.0,0.00013789,2]
[422281928,1778793040000,-500.0,0.00013698,2]
[422281994,1778793040000,-500.0,0.00013698,2]
[422281990,1778793040000,-151.0,0.00013698,2]
[422282017,1778793040000,-151.0,0.00013699,2]
[422281988,1778793040000,-151.0,0.00013698,2]
[422281998,1778793040000,-500.0,0.00013698,2]
[422281943,1778793040000,-500.47540204,0.00013698,2]
[422281945,1778793040000,-553.57,0.00013698,2]
[422281949,1778793040000,-553.57,0.00013698,2]
[422281947,1778793040000,-553.57,0.00013698,2]
[422281934,1778793040000,-500.0,0.00013698,2]
[422281939,1778793040000,-500.0,0.00013698,2]
[422281941,1778793040000,-500.0,0.00013698,2]
[422281953,1778793040000,-553.57,0.00013698,2]
[422281955,1778793040000,-553.57,0.00013698,2]
[422281959,1778793040000,-553.57,0.00013698,2]
[422281957,1778793040000,-553.57,0.00013698,2]
[422281971,1778793040000,-500.0,0.00013698,2]
[422281961,1778793040000,-553.57,0.00013698,2]
[422281951,1778793040000,-553.57,0.00013698,2]
[422282000,1778793040000,-500.0,0.00013698,2]
[422281973,1778793040000,-500.0,0.00013698,2]
[422282002,1778793040000,-500.0,0.00013698,2]
[422281986,1778793040000,-151.0,0.00013698,2]
[422281982,1778793040000,-500.0,0.00013698,2]
[422281984,1778793040000,-500.0,0.00013698,2]
[422281977,1778793040000,-500.0,0.00013698,2]
[422281980,1778793040000,-500.0,0.00013698,2]
[422281969,1778793040000,-500.0,0.00013698,2]
[422281967,1778793040000,-500.0,0.00013698,2]
[422281975,1778793040000,-500.0,0.00013698,2]
[422281963,1778793040000,-553.57,0.00013698,2]
[422281965,1778793040000,-500.0,0.00013698,2]
[422282149,1778793041000,-150.0,0.00014237,2]
[422282136,1778793041000,-350.0,0.00014093,3]
[422282153,1778793041000,-150.0,0.00014237,2]
[422282151,1778793041000,-150.0,0.00014237,2]
[422282146,1778793041000,-2129.0,0.00014199,2]
[422282134,1778793041000,-2337.16556047,0.00014062,2]
[422282115,1778793041000,-151.0,0.00014,2]
[422282129,1778793041000,-6453.0,0.00014035,2]
[422282127,1778793041000,-500.0,0.00014034,2]
[422282119,1778793041000,-151.0,0.00014,2]
[422282117,1778793041000,-151.0,0.00014,2]
[422282142,1778793041000,-166.66,0.0001411,2]
[422282131,1778793041000,-156.97555839,0.00014039,2]
[422282140,1778793041000,-1263.38,0.000141,2]
[422282164,1778793041000,-2401.536806,0.00014374,2]
[422282144,1778793041000,-350.0,0.00014128,2]
[422282155,1778793041000,-166.66,0.00014247,2]
[422282154,1778793041000,-150.0,0.00014237,2]
[422282156,1778793041000,-150.0,0.00014247,21]
[422282174,1778793041000,-836.74,0.00014497,2]
[422282158,1778793041000,-789.58,0.00014247,2]
[422282168,1778793041000,-350.0,0.00014415,2]
[422282162,1778793041000,-500.0,0.00014308,2]
[422282160,1778793041000,-350.0,0.00014297,2]
[422282176,1778793041000,-873.43,0.00014497,2]
[422282170,1778793041000,-150.0,0.00014487,2]
[422282172,1778793041000,-277.05,0.00014497,2]
[422282113,1778793041000,-151.0,0.00014,2]
[422282138,1778793041000,-700.0,0.00014093,3]
[422282125,1778793041000,-7217.94967261,0.00014006,2]
[422282055,1778793041000,-166.66,0.00013836,2]
[422282123,1778793041000,-1263.38,0.00014,2]
[422282166,1778793041000,-166.66,0.00014384,2]
[422282059,1778793041000,-710.50851313,0.00013887,2]
[422282057,1778793041000,-251.73418071,0.00013876,2]
[422282061,1778793041000,-166.66,0.00013973,2]
[422282071,1778793041000,-30907.82,0.00014,2]
[422282075,1778793041000,-250.0,0.00014,2]
[422282073,1778793041000,-12795.63,0.00014,2]
[422282063,1778793041000,-789.58,0.00013973,2]
[422282065,1778793041000,-150.0,0.00013987,2]
[422282069,1778793041000,-300.0,0.00013999,2]
[422282067,1778793041000,-4080.67207393,0.0001399,2]
[422282079,1778793041000,-308.0,0.00014,2]
[422282077,1778793041000,-151.0,0.00014,2]
[422282121,1778793041000,-151.0,0.00014,2]
[422282083,1778793041000,-314.0,0.00014,2]
[422282098,1778793041000,-151.0,0.00014,2]
[422282096,1778793041000,-151.0,0.00014,2]
[422282100,1778793041000,-418.151872,0.00014,2]
[422282087,1778793041000,-922.330239,0.00014,2]
[422282085,1778793041000,-200.0,0.00014,2]
[422282089,1778793041000,-922.330239,0.00014,2]
[422282094,1778793041000,-922.330239,0.00014,2]
[422282092,1778793041000,-922.330239,0.00014,2]
[422282102,1778793041000,-151.0,0.00014,2]
[422282106,1778793041000,-418.151872,0.00014,2]
[422282104,1778793041000,-418.151872,0.00014,2]
[422282108,1778793041000,-418.151872,0.00014,2]
[422282111,1778793041000,-151.0,0.00014,2]
[422282081,1778793041000,-1000.0,0.00014,2]
[422282180,1778793041000,-789.58,0.00014521,2]
[422282182,1778793041000,-5788.0,0.0001456,2]
[422282296,1778793041000,-500.0,0.00014767,2]
[422282243,1778793041000,-200.0,0.00014767,2]
[422282249,1778793041000,-151.0,0.00014767,2]
[422282253,1778793041000,-151.0,0.00014767,2]
[422282255,1778793041000,-500.0,0.00014767,2]
[422282257,1778793041000,-151.0,0.00014767,2]
[422282259,1778793041000,-500.0,0.00014767,2]
[422282261,1778793041000,-151.0,0.00014767,2]
[422282263,1778793041000,-500.0,0.00014767,2]
[422282265,1778793041000,-151.0,0.00014767,2]
[422282278,1778793041000,-500.0,0.00014767,2]
[422282274,1778793041000,-500.0,0.00014767,2]
[422282269,1778793041000,-151.0,0.00014767,2]
[422282271,1778793041000,-743.50770149,0.00014767,2]
[422282239,1778793041000,-1328.27659266,0.00014767,2]
[422282280,1778793041000,-151.0,0.00014767,2]
[422282276,1778793041000,-151.0,0.00014767,2]
[422282282,1778793041000,-500.0,0.00014767,2]
[422282284,1778793041000,-151.0,0.00014767,2]
[422282286,1778793041000,-500.0,0.00014767,2]
[422282288,1778793041000,-151.0,0.00014767,2]
[422282290,1778793041000,-500.0,0.00014767,2]
[422282294,1778793041000,-151.0,0.00014767,2]
[422282292,1778793041000,-151.0,0.00014767,2]
[422282298,1778793041000,-151.0,0.00014767,2]
[422282300,1778793041000,-500.0,0.00014767,2]
[422282302,1778793041000,-500.0,0.00014767,2]
[422282304,1778793041000,-500.0,0.00014767,2]
[422282306,1778793041000,-500.0,0.00014767,2]
[422282267,1778793041000,-500.0,0.00014767,2]
[422282237,1778793041000,-500.0,0.00014767,2]
[422282178,1778793041000,-473.77523904,0.0001451,2]
[422282247,1778793041000,-670.58624095,0.00014767,2]
[422282241,1778793041000,-151.0,0.00014767,2]
[422282184,1778793041000,-160.59184327,0.00014582,2]
[422282195,1778793041000,-151.0,0.000147,2]
[422282196,1778793041000,-151.0,0.000147,2]
[422282198,1778793041000,-151.0,0.000147,2]
[422282192,1778793041000,-2869.65546085,0.000147,2]
[422282190,1778793041000,-500.0,0.00014699,2]
[422282188,1778793041000,-553.57,0.00014699,2]
[422282200,1778793041000,-151.0,0.000147,2]
[422282202,1778793041000,-396.0,0.00014734,2]
[422282204,1778793041000,-393.0,0.00014736,2]
[422282209,1778793041000,-397.0,0.00014737,2]
[422282206,1778793041000,-150.0,0.00014737,2]
[422282211,1778793041000,-421.0,0.0001474,2]
[422282186,1778793041000,-7217.94967261,0.00014667,2]
[422282215,1778793041000,-421.0,0.00014748,2]
[422282221,1778793041000,-393.0,0.00014759,2]
[422282251,1778793041000,-500.0,0.00014767,2]
[422282235,1778793041000,-194.72792766,0.00014767,2]
[422282231,1778793041000,-578.20924308,0.00014767,2]
[422282233,1778793041000,-203.2338541,0.00014767,2]
[422282229,1778793041000,-398.0,0.00014765,2]
[422282245,1778793041000,-500.0,0.00014767,2]
[422282227,1778793041000,-402.0,0.00014764,2]
[422282217,1778793041000,-421.0,0.00014757,2]
[422282213,1778793041000,-421.0,0.00014746,2]
[422282223,1778793041000,-334.90778227,0.00014759,2]
[422282225,1778793041000,-402.0,0.00014761,2]
[422282219,1778793041000,-421.0,0.00014759,2]
[422282396,1778793042000,-152.0,0.00014767,2]
[422282398,1778793042000,-262.90206542,0.00014767,2]
[422282397,1778793042000,-151.0,0.00014767,2]
[422282395,1778793042000,-253.52176029,0.00014767,2]
[422282391,1778793042000,-151.0,0.00014767,2]
[422282392,1778793042000,-244.476143,0.00014767,2]
[422282376,1778793042000,-194.72792766,0.00014767,2]
[422282371,1778793042000,-235.75327194,0.00014767,2]
[422282402,1778793042000,-272.62944185,0.00014767,2]
[422282373,1778793042000,-152.0,0.00014767,2]
[422282393,1778793042000,-152.0,0.00014767,2]
[422282369,1778793042000,-151.0,0.00014767,2]
[422282408,1778793042000,-1934.38338737,0.00014767,2]
[422282399,1778793042000,-152.0,0.00014767,2]
[422282400,1778793042000,-151.0,0.00014767,2]
[422282406,1778793042000,-151.0,0.00014767,2]
[422282404,1778793042000,-152.0,0.00014767,2]
[422282410,1778793042000,-282.71673119,0.00014767,2]
[422282426,1778793042000,-1000.0,0.00014767,2]
[422282424,1778793042000,-304.02480851,0.00014767,2]
[422282431,1778793042000,-1000.0,0.00014767,2]
[422282422,1778793042000,-151.0,0.00014767,2]
[422282418,1778793042000,-293.17725025,0.00014767,2]
[422282366,1778793042000,-152.0,0.00014767,2]
[422282427,1778793042000,-151.0,0.00014767,2]
[422282394,1778793042000,-151.0,0.00014767,2]
[422282364,1778793042000,-227.34163157,0.00014767,2]
[422282334,1778793042000,-152.0,0.00014767,2]
[422282357,1778793042000,-219.23011724,0.00014767,2]
[422282416,1778793042000,-151.0,0.00014767,2]
[422282308,1778793042000,-500.0,0.00014767,2]
[422282310,1778793042000,-500.0,0.00014767,2]
[422282312,1778793042000,-500.0,0.00014767,2]
[422282327,1778793042000,-500.0,0.00014767,2]
[422282322,1778793042000,-500.0,0.00014767,2]
[422282330,1778793042000,-500.0,0.00014767,2]
[422282332,1778793042000,-151.0,0.00014767,2]
[422282318,1778793042000,-500.0,0.00014767,2]
[422282314,1778793042000,-500.0,0.00014767,2]
[422282316,1778793042000,-500.0,0.00014767,2]
[422282329,1778793042000,-151.0,0.00014767,2]
[422282320,1778793042000,-151.0,0.00014767,2]
[422282324,1778793042000,-151.0,0.00014767,2]
[422282337,1778793042000,-194.72792766,0.00014767,2]
[422282338,1778793042000,-151.0,0.00014767,2]
[422282340,1778793042000,-152.0,0.00014767,2]
[422282342,1778793042000,-151.0,0.00014767,2]
[422282351,1778793042000,-152.0,0.00014767,2]
[422282353,1778793042000,-152.0,0.00014767,2]
[422282359,1778793042000,-152.0,0.00014767,2]
[422282345,1778793042000,-152.0,0.00014767,2]
[422282349,1778793042000,-151.0,0.00014767,2]
[422282355,1778793042000,-151.0,0.00014767,2]
[422282347,1778793042000,-174.61919141,0.00014767,2]
[422282361,1778793042000,-151.0,0.00014767,2]
[422282420,1778793042000,-1000.0,0.00014767,2]
[422282448,1778793042000,-279.9045709,0.00014767,2]
[422282412,1778793042000,-644.79446246,0.00014767,2]
[422282489,1778793042000,-393.0,0.00014847,2]
[422282491,1778793042000,-402.0,0.00014854,2]
[422282493,1778793042000,-393.0,0.00014856,2]
[422282495,1778793042000,-421.0,0.00014857,2]
[422282506,1778793042000,-396.0,0.00014868,2]
[422282508,1778793042000,-393.0,0.00014869,2]
[422282510,1778793042000,-402.0,0.00014876,2]
[422282512,1778793042000,-151.0,0.00014877,2]
[422282504,1778793042000,-402.0,0.00014868,2]
[422282502,1778793042000,-393.0,0.00014866,2]
[422282516,1778793042000,-421.0,0.0001488,2]
[422282414,1778793042000,-152.0,0.00014767,2]
[422282497,1778793042000,-398.0,0.00014859,2]
[422282499,1778793042000,-398.0,0.00014861,2]
[422282500,1778793042000,-421.0,0.00014865,2]
[422282518,1778793042000,-393.0,0.00014881,2]
[422282520,1778793042000,-398.0,0.00014894,2]
[422282536,1778793042000,-1202.77251,0.00014896,2]
[422282522,1778793042000,-393.0,0.00014894,2]
[422282534,1778793042000,-1202.77251,0.00014896,2]
[422282532,1778793042000,-1202.77251,0.00014896,2]
[422282530,1778793042000,-1202.77251,0.00014896,2]
[422282526,1778793042000,-151.0,0.00014896,2]
[422282528,1778793042000,-151.0,0.00014896,2]
[422282524,1778793042000,-402.0,0.00014896,2]
[422282471,1778793042000,-393.0,0.00014817,2]
[422282483,1778793042000,-402.0,0.00014838,2]
[422282514,1778793042000,-421.0,0.00014879,2]
[422282470,1778793042000,-397.0,0.00014816,2]
[422282429,1778793042000,-191.49654804,0.00014767,2]
[422282475,1778793042000,-151.0,0.00014822,2]
[422282433,1778793042000,-151.0,0.00014767,2]
[422282435,1778793042000,-1000.0,0.00014767,2]
[422282437,1778793042000,-151.0,0.00014767,2]
[422282450,1778793042000,-1000.0,0.00014767,2]
[422282452,1778793042000,-151.0,0.00014767,2]
[422282458,1778793042000,-402.0,0.00014779,2]
[422282441,1778793042000,-1000.0,0.00014767,2]
[422282454,1778793042000,-194.72792766,0.00014767,2]
[422282446,1778793042000,-1000.0,0.00014767,2]
[422282443,1778793042000,-1000.0,0.00014767,2]
[422282456,1778793042000,-421.0,0.00014768,2]
[422282444,1778793042000,-1000.0,0.00014767,2]
[422282477,1778793042000,-397.0,0.00014823,2]
[422282439,1778793042000,-1000.0,0.00014767,2]
[422282487,1778793042000,-436.0,0.00014846,2]
[422282474,1778793042000,-421.0,0.00014821,2]
[422282485,1778793042000,-421.0,0.00014846,2]
[422282479,1778793042000,-396.0,0.00014824,2]
[422282481,1778793042000,-398.0,0.00014828,2]
[422282464,1778793042000,-396.0,0.00014799,2]
[422282466,1778793042000,-230.67441483,0.00014799,2]
[422282462,1778793042000,-789.58,0.00014795,2]
[422282460,1778793042000,-421.0,0.00014794,2]
[422282468,1778793042000,-402.0,0.00014808,2]
[422282607,1778793043000,-402.0,0.00014998,2]
[422282609,1778793043000,-1580.50280252,0.00014999,2]
[422282621,1778793043000,-553.57,0.00014999,2]
[422282606,1778793043000,-393.0,0.00014998,2]
[422282604,1778793043000,-151.0,0.00014997,2]
[422282611,1778793043000,-553.57,0.00014999,2]
[422282617,1778793043000,-553.57,0.00014999,2]
[422282615,1778793043000,-553.57,0.00014999,2]
[422282619,1778793043000,-553.57,0.00014999,2]
[422282600,1778793043000,-151.0,0.00014987,2]
[422282624,1778793043000,-553.57,0.00014999,2]
[422282602,1778793043000,-840.52075798,0.0001499,2]
[422282623,1778793043000,-553.57,0.00014999,2]
[422282631,1778793043000,-500.0,0.00014999,2]
[422282637,1778793043000,-2531.85443811,0.00015,14]
[422282641,1778793043000,-2967543.02384028,0.00015,2]
[422282629,1778793043000,-553.69037677,0.00014999,2]
[422282625,1778793043000,-553.57,0.00014999,2]
[422282630,1778793043000,-500.0,0.00014999,2]
[422282627,1778793043000,-553.57,0.00014999,2]
[422282634,1778793043000,-620389.75227012,0.00015,2]
[422282628,1778793043000,-553.57,0.00014999,2]
[422282632,1778793043000,-299.94124875,0.00014999,2]
[422282635,1778793043000,-2075.94096564,0.00015,2]
[422282633,1778793043000,-300.0,0.00014999,2]
[422282642,1778793043000,-308.43,0.00015,2]
[422282613,1778793043000,-553.57,0.00014999,2]
[422282626,1778793043000,-553.57,0.00014999,2]
[422282598,1778793043000,-150.0,0.00014986,2]
[422282644,1778793043000,-351293.7211579,0.00015,2]
[422282594,1778793043000,-150.0,0.00014986,2]
[422282538,1778793043000,-8227.347,0.000149,2]
[422282542,1778793043000,-4289.617565,0.000149,2]
[422282544,1778793043000,-24799.59467503,0.000149,2]
[422282540,1778793043000,-271.68537937,0.000149,2]
[422282546,1778793043000,-402.0,0.00014901,2]
[422282549,1778793043000,-396.0,0.00014902,2]
[422282548,1778793043000,-402.0,0.00014901,2]
[422282551,1778793043000,-398.0,0.00014903,2]
[422282553,1778793043000,-421.0,0.00014904,2]
[422282559,1778793043000,-421.0,0.00014915,2]
[422282557,1778793043000,-398.0,0.00014913,2]
[422282555,1778793043000,-402.0,0.0001491,2]
[422282567,1778793043000,-151.0,0.00014932,2]
[422282561,1778793043000,-421.0,0.00014916,2]
[422282563,1778793043000,-393.0,0.00014922,2]
[422282565,1778793043000,-4197.53222464,0.00014923,2]
[422282569,1778793043000,-421.0,0.00014946,2]
[422282570,1778793043000,-393.0,0.0001495,2]
[422282572,1778793043000,-505.0,0.00014954,2]
[422282574,1778793043000,-502.0,0.00014962,2]
[422282576,1778793043000,-350.0,0.00014962,2]
[422282586,1778793043000,-398.0,0.00014984,2]
[422282580,1778793043000,-421.0,0.00014966,2]
[422282584,1778793043000,-402.0,0.0001498,2]
[422282582,1778793043000,-393.0,0.00014967,2]
[422282592,1778793043000,-150.0,0.00014986,2]
[422282590,1778793043000,-421.0,0.00014986,2]
[422282578,1778793043000,-248.0,0.00014964,2]
[422282588,1778793043000,-398.0,0.00014984,2]
[422282596,1778793043000,-150.0,0.00014986,2]
[422282643,1778793043000,-265.08,0.00015,2]
[422282639,1778793043000,-1050565.04266384,0.00015,2]
[422282646,1778793043000,-8081.766424,0.00015,2]
[422282687,1778793043000,-299.053902,0.00015,2]
[422282689,1778793043000,-1834.29100157,0.00015,2]
[422282690,1778793043000,-441.91799074,0.00015,2]
[422282691,1778793043000,-922.330239,0.00015,2]
[422282692,1778793043000,-922.330239,0.00015,2]
[422282693,1778793043000,-922.330239,0.00015,2]
[422282694,1778793043000,-922.330239,0.00015,2]
[422282708,1778793043000,-151.0,0.00015,2]
[422282695,1778793043000,-922.330239,0.00015,2]
[422282697,1778793043000,-922.330239,0.00015,2]
[422282705,1778793043000,-151.0,0.00015,2]
[422282696,1778793043000,-922.330239,0.00015,2]
[422282706,1778793043000,-151.0,0.00015,2]
[422282686,1778793043000,-1907.51407358,0.00015,2]
[422282699,1778793043000,-922.330239,0.00015,2]
[422282704,1778793043000,-151.0,0.00015,2]
[422282701,1778793043000,-922.330239,0.00015,2]
[422282702,1778793043000,-922.33023,0.00015,2]
[422282700,1778793043000,-922.330239,0.00015,2]
[422282710,1778793043000,-418.151872,0.00015,2]
[422282712,1778793043000,-151.0,0.00015,2]
[422282716,1778793043000,-418.151872,0.00015,2]
[422282718,1778793043000,-228.688224,0.00015,2]
[422282719,1778793043000,-418.151872,0.00015,2]
[422282714,1778793043000,-418.151872,0.00015,2]
[422282720,1778793043000,-418.151872,0.00015,2]
[422282717,1778793043000,-151.0,0.00015,2]
[422282657,1778793043000,-151.0,0.00015,2]
[422282703,1778793043000,-151.0,0.00015,2]
[422282688,1778793043000,-3075.91158558,0.00015,2]
[422282698,1778793043000,-922.330239,0.00015,2]
[422282685,1778793043000,-151.0,0.00015,2]
[422282684,1778793043000,-151.0,0.00015,2]
[422282645,1778793043000,-398.0,0.00015,2]
[422282647,1778793043000,-150.0,0.00015,2]
[422282653,1778793043000,-151.0,0.00015,2]
[422282651,1778793043000,-240.979073,0.00015,2]
[422282650,1778793043000,-151.0,0.00015,2]
[422282648,1778793043000,-731.25893649,0.00015,2]
[422282652,1778793043000,-9988687.97064262,0.00015,2]
[422282649,1778793043000,-151.0,0.00015,2]
[422282658,1778793043000,-1202.77251,0.00015,2]
[422282660,1778793043000,-1202.77251,0.00015,2]
[422282663,1778793043000,-1202.77251,0.00015,2]
[422282662,1778793043000,-1202.77251,0.00015,2]
[422282664,1778793043000,-1202.77251,0.00015,2]
[422282665,1778793043000,-1202.77251,0.00015,2]
[422282655,1778793043000,-151.0,0.00015,2]
[422282679,1778793043000,-151.0,0.00015,2]
[422282681,1778793043000,-151.0,0.00015,2]
[422282670,1778793043000,-1202.77251,0.00015,2]
[422282672,1778793043000,-1202.77251,0.00015,2]
[422282674,1778793043000,-1202.77251,0.00015,2]
[422282675,1778793043000,-1202.772514,0.00015,2]
[422282678,1778793043000,-151.0,0.00015,2]
[422282673,1778793043000,-1202.77251,0.00015,2]
[422282676,1778793043000,-151.0,0.00015,2]
[422282671,1778793043000,-1202.77251,0.00015,2]
[422282677,1778793043000,-151.0,0.00015,2]
[422282680,1778793043000,-151.0,0.00015,2]
[422282683,1778793043000,-151.0,0.00015,2]
[422282682,1778793043000,-151.0,0.00015,2]
[422282758,1778793044000,-318.55,0.00015068,2]
[422282761,1778793044000,-652.143794,0.00015068,2]
[422282752,1778793044000,-151.0,0.00015,2]
[422282759,1778793044000,-652.143794,0.00015068,2]